[Event "Titled Tuesday Blitz February 07 Late 2023"]
[White "Guzman Moneo, Alberto"]
[Black "Al-Tarboush, Ward"]
[WhiteFideId "2209616"]
[BlackFideId "7601450"]
[WhiteElo "2170"]
[BlackElo "2256"]
[Result "1/2-1/2"]
[Round "01"]
[TimeControl "180+2"]
[Date "2023.02.07"]
[WhiteClock "0:00:57"]
[BlackClock "0:00:15"]

1. e4 {[%clk 0:03:00]}  c5 {[%clk 0:02:32]} 2. Nc3 {[%clk 0:02:51]}  Nc6 {[%clk 0:02:23]} 3. Bb5 {[%clk 0:02:51]}  e5 {[%clk 0:02:23]} 4. Nf3 {[%clk 0:02:49]}  d6 {[%clk 0:02:22]} 5. O-O {[%clk 0:02:49]}  Nf6 {[%clk 0:02:22]} 6. d3 {[%clk 0:02:48]}  Be7 {[%clk 0:02:23]} 7. Bg5 {[%clk 0:02:45]}  O-O {[%clk 0:02:23]} 8. Bxf6 {[%clk 0:02:42]}  Bxf6 {[%clk 0:02:22]} 9. Nd5 {[%clk 0:02:43]}  a6 {[%clk 0:02:22]} 10. Bxc6 {[%clk 0:02:42]}  bxc6 {[%clk 0:02:23]} 11. Nxf6+ {[%clk 0:02:42]}  Qxf6 {[%clk 0:02:22]} 12. Nd2 {[%clk 0:02:43]}  Be6 {[%clk 0:02:22]} 13. b3 {[%clk 0:02:42]}  d5 {[%clk 0:02:22]} 14. Qe2 {[%clk 0:02:40]}  Qg5 {[%clk 0:02:22]} 15. Qe3 {[%clk 0:02:40]}  Qxe3 {[%clk 0:02:21]} 16. fxe3 {[%clk 0:02:41]}  f5 {[%clk 0:02:18]} 17. exf5 {[%clk 0:02:39]}  Bxf5 {[%clk 0:02:17]} 18. e4 {[%clk 0:02:34]}  Be6 {[%clk 0:02:16]} 19. Rxf8+ {[%clk 0:02:34]}  Rxf8 {[%clk 0:02:16]} 20. Rf1 {[%clk 0:02:34]}  Rxf1+ {[%clk 0:02:15]} 21. Kxf1 {[%clk 0:02:35]}  Kf7 {[%clk 0:02:11]} 22. c4 {[%clk 0:02:34]}  Kf6 {[%clk 0:02:09]} 23. Kf2 {[%clk 0:02:32]}  Bg4 {[%clk 0:02:04]} 24. exd5 {[%clk 0:02:27]}  cxd5 {[%clk 0:02:03]} 25. cxd5 {[%clk 0:02:27]}  Bf5 {[%clk 0:01:37]} 26. Ne4+ {[%clk 0:02:25]}  Ke7 {[%clk 0:01:38]} 27. Ke3 {[%clk 0:02:18]}  a5 {[%clk 0:01:34]} 28. h3 {[%clk 0:02:09]}  Bc8 {[%clk 0:01:32]} 29. g4 {[%clk 0:02:02]}  h6 {[%clk 0:01:25]} 30. Kd2 {[%clk 0:01:53]}  h5 {[%clk 0:01:19]} 31. gxh5 {[%clk 0:01:47]}  Bxh3 {[%clk 0:01:19]} 32. Nxc5 {[%clk 0:01:47]}  Kd6 {[%clk 0:01:18]} 33. Nb7+ {[%clk 0:01:45]}  Kxd5 {[%clk 0:01:18]} 34. Nxa5 {[%clk 0:01:46]}  Bg4 {[%clk 0:01:18]} 35. h6 {[%clk 0:01:47]}  gxh6 {[%clk 0:01:18]} 36. Nc4 {[%clk 0:01:46]}  Be6 {[%clk 0:01:14]} 37. b4 {[%clk 0:01:42]}  h5 {[%clk 0:01:11]} 38. a3 {[%clk 0:01:35]}  h4 {[%clk 0:01:08]} 39. Ne3+ {[%clk 0:01:35]}  Kd4 {[%clk 0:01:06]} 40. Nc2+ {[%clk 0:01:35]}  Kd5 {[%clk 0:01:05]} 41. Ke2 {[%clk 0:01:23]}  Bd7 {[%clk 0:00:49]} 42. Kf3 {[%clk 0:01:15]}  Ba4 {[%clk 0:00:45]} 43. Ne3+ {[%clk 0:01:13]}  Kd4 {[%clk 0:00:45]} 44. Nf5+ {[%clk 0:01:13]}  Kxd3 {[%clk 0:00:45]} 45. Nxh4 {[%clk 0:01:07]}  Bc6+ {[%clk 0:00:35]} 46. Kf2 {[%clk 0:01:07]}  Kd2 {[%clk 0:00:19]} 47. Nf5 {[%clk 0:01:03]}  Kc3 {[%clk 0:00:19]} 48. Ke3 {[%clk 0:00:59]}  Kb3 {[%clk 0:00:18]} 49. Ne7 {[%clk 0:00:58]}  Bb7 {[%clk 0:00:17]} 50. b5 {[%clk 0:00:57]}  Kxa3 {[%clk 0:00:16]} 51. Nc6 {[%clk 0:00:57]}  Ka4 {[%clk 0:00:15]} 52. Nxe5 {[%clk 0:00:57]}  Kxb5 {[%clk 0:00:15]} 1/2-1/2


[Site "https://www.chess.com"]

[Event "Titled Tuesday Blitz February 07 Late 2023"]
[White "Koc, Przemyslaw"]
[Black "lisjakzlatko1"]
[WhiteFideId "1109081"]
[WhiteElo "2346"]
[BlackElo "2213"]
[Result "1-0"]
[Round "01"]
[TimeControl "180+2"]
[Date "2023.02.07"]
[WhiteClock "0:01:10"]
[BlackClock "0:00:07"]

1. d4 {[%clk 0:03:00]}  d5 {[%clk 0:01:20]} 2. Nf3 {[%clk 0:02:58]}  Nc6 {[%clk 0:01:18]} 3. b3 {[%clk 0:02:57]}  Bg4 {[%clk 0:01:15]} 4. Bb2 {[%clk 0:02:57]}  e6 {[%clk 0:01:16]} 5. e3 {[%clk 0:02:52]}  Nf6 {[%clk 0:01:14]} 6. h3 {[%clk 0:02:51]}  Bh5 {[%clk 0:01:14]} 7. g4 {[%clk 0:02:50]}  Bg6 {[%clk 0:01:13]} 8. Ne5 {[%clk 0:02:50]}  Nxe5 {[%clk 0:01:11]} 9. dxe5 {[%clk 0:02:51]}  h5 {[%clk 0:01:10]} 10. exf6 {[%clk 0:02:51]}  gxf6 {[%clk 0:01:04]} 11. gxh5 {[%clk 0:02:44]}  Bxh5 {[%clk 0:01:00]} 12. Be2 {[%clk 0:02:44]}  Bg6 {[%clk 0:01:00]} 13. Nd2 {[%clk 0:02:34]}  Bd6 {[%clk 0:00:57]} 14. Nf3 {[%clk 0:02:17]}  c6 {[%clk 0:00:52]} 15. Qd2 {[%clk 0:02:13]}  Qe7 {[%clk 0:00:51]} 16. O-O-O {[%clk 0:02:08]}  O-O-O {[%clk 0:00:49]} 17. h4 {[%clk 0:02:01]}  e5 {[%clk 0:00:47]} 18. Rdg1 {[%clk 0:01:52]}  Bb4 {[%clk 0:00:42]} 19. c3 {[%clk 0:01:52]}  Bc5 {[%clk 0:00:35]} 20. Ne1 {[%clk 0:01:48]}  d4 {[%clk 0:00:28]} 21. exd4 {[%clk 0:01:39]}  exd4 {[%clk 0:00:27]} 22. cxd4 {[%clk 0:01:33]}  Bb4 {[%clk 0:00:20]} 23. Qd1 {[%clk 0:01:27]}  Qd6 {[%clk 0:00:18]} 24. Nc2 {[%clk 0:01:20]}  Qf4+ {[%clk 0:00:16]} 25. Kb1 {[%clk 0:01:20]}  Rhe8 {[%clk 0:00:13]} 26. Rxg6 {[%clk 0:01:18]}  fxg6 {[%clk 0:00:12]} 27. Nxb4 {[%clk 0:01:18]}  Qe4+ {[%clk 0:00:09]} 28. Bd3 {[%clk 0:01:19]}  Qf4 {[%clk 0:00:07]} 29. Bxg6 {[%clk 0:01:10]} 1-0


[Site "https://www.chess.com"]

[Event "Titled Tuesday Blitz February 07 Late 2023"]
[White "Marin Ramirez, Gerardo"]
[Black "Chan, Luis"]
[WhiteFideId "3901068"]
[BlackFideId "3216357"]
[WhiteElo "2127"]
[BlackElo "2208"]
[Result "0-1"]
[Round "01"]
[TimeControl "180+2"]
[Date "2023.02.07"]
[WhiteClock "0:00:01"]
[BlackClock "0:00:28"]

1. d4 {[%clk 0:02:37]}  d6 {[%clk 0:02:59]} 2. Nf3 {[%clk 0:02:38]}  Nf6 {[%clk 0:02:59]} 3. g3 {[%clk 0:02:38]}  g6 {[%clk 0:03:00]} 4. Bg2 {[%clk 0:02:38]}  Bg7 {[%clk 0:03:00]} 5. c4 {[%clk 0:02:38]}  O-O {[%clk 0:03:00]} 6. O-O {[%clk 0:02:39]}  Nc6 {[%clk 0:03:01]} 7. d5 {[%clk 0:02:32]}  Nb8 {[%clk 0:02:59]} 8. Nc3 {[%clk 0:02:31]}  e5 {[%clk 0:02:35]} 9. e4 {[%clk 0:02:14]}  Nbd7 {[%clk 0:02:24]} 10. h3 {[%clk 0:02:14]}  Nc5 {[%clk 0:02:16]} 11. Ne1 {[%clk 0:02:11]}  a5 {[%clk 0:02:14]} 12. Nd3 {[%clk 0:02:09]}  b6 {[%clk 0:02:08]} 13. Nxc5 {[%clk 0:02:04]}  bxc5 {[%clk 0:02:09]} 14. Nb5 {[%clk 0:02:03]}  Ne8 {[%clk 0:02:00]} 15. Bd2 {[%clk 0:01:59]}  f5 {[%clk 0:01:54]} 16. Qe1 {[%clk 0:01:58]}  a4 {[%clk 0:01:51]} 17. b3 {[%clk 0:01:35]}  f4 {[%clk 0:01:42]} 18. f3 {[%clk 0:01:28]}  fxg3 {[%clk 0:01:39]} 19. Qxg3 {[%clk 0:01:26]}  Bf6 {[%clk 0:01:27]} 20. Qf2 {[%clk 0:01:06]}  Bh4 {[%clk 0:01:11]} 21. Qe2 {[%clk 0:01:04]}  Bg5 {[%clk 0:01:09]} 22. Be3 {[%clk 0:00:49]}  Rf7 {[%clk 0:01:04]} 23. Qd2 {[%clk 0:00:47]}  Bxe3+ {[%clk 0:01:03]} 24. Qxe3 {[%clk 0:00:48]}  Qh4 {[%clk 0:00:59]} 25. Nc3 {[%clk 0:00:37]}  Ng7 {[%clk 0:00:48]} 26. Qf2 {[%clk 0:00:30]}  Qg5 {[%clk 0:00:32]} 27. Nxa4 {[%clk 0:00:12]}  Nh5 {[%clk 0:00:28]} 28. h4 {[%clk 0:00:09]}  Qh6 {[%clk 0:00:27]} 29. Rae1 {[%clk 0:00:01]}  Nf4 {[%clk 0:00:28]} 0-1


[Site "https://www.chess.com"]

[Event "Titled Tuesday Blitz February 07 Late 2023"]
[White "Liu, Leonardo"]
[Black "Hirneise, Jens"]
[WhiteFideId "30965780"]
[BlackFideId "24614734"]
[WhiteElo "1919"]
[BlackElo "2277"]
[Result "0-1"]
[Round "01"]
[TimeControl "180+2"]
[Date "2023.02.07"]
[WhiteClock "0:00:34"]
[BlackClock "0:00:23"]

1. e4 {[%clk 0:03:00]}  d5 {[%clk 0:02:58]} 2. exd5 {[%clk 0:03:00]}  Nf6 {[%clk 0:02:59]} 3. d4 {[%clk 0:02:59]}  Bg4 {[%clk 0:02:58]} 4. f3 {[%clk 0:02:59]}  Bf5 {[%clk 0:02:58]} 5. Bd3 {[%clk 0:02:59]}  Bxd3 {[%clk 0:02:54]} 6. Qxd3 {[%clk 0:03:00]}  Qxd5 {[%clk 0:02:55]} 7. c4 {[%clk 0:03:00]}  Qd8 {[%clk 0:02:49]} 8. Ne2 {[%clk 0:03:00]}  e6 {[%clk 0:02:48]} 9. Nbc3 {[%clk 0:03:01]}  Be7 {[%clk 0:02:45]} 10. O-O {[%clk 0:03:01]}  O-O {[%clk 0:02:45]} 11. Bf4 {[%clk 0:03:01]}  c5 {[%clk 0:02:45]} 12. d5 {[%clk 0:03:00]}  exd5 {[%clk 0:02:45]} 13. cxd5 {[%clk 0:03:00]}  Bd6 {[%clk 0:02:43]} 14. Rad1 {[%clk 0:02:53]}  a6 {[%clk 0:02:38]} 15. Ne4 {[%clk 0:02:48]}  Bxf4 {[%clk 0:02:34]} 16. Nxf4 {[%clk 0:02:47]}  Nbd7 {[%clk 0:02:35]} 17. d6 {[%clk 0:02:43]}  Re8 {[%clk 0:02:33]} 18. Nd5 {[%clk 0:02:43]}  Nxd5 {[%clk 0:02:29]} 19. Qxd5 {[%clk 0:02:37]}  Qb6 {[%clk 0:02:29]} 20. Ng5 {[%clk 0:02:28]}  Rf8 {[%clk 0:02:21]} 21. b3 {[%clk 0:02:25]}  h6 {[%clk 0:02:16]} 22. Ne4 {[%clk 0:02:24]}  c4+ {[%clk 0:02:13]} 23. Kh1 {[%clk 0:02:22]}  cxb3 {[%clk 0:02:12]} 24. axb3 {[%clk 0:02:22]}  Rfe8 {[%clk 0:02:09]} 25. Rc1 {[%clk 0:02:21]}  Re5 {[%clk 0:02:08]} 26. Qd3 {[%clk 0:02:16]}  Rd8 {[%clk 0:01:53]} 27. Rc7 {[%clk 0:02:12]}  Nc5 {[%clk 0:01:41]} 28. Qc4 {[%clk 0:01:30]}  Ne6 {[%clk 0:01:38]} 29. Re7 {[%clk 0:01:19]}  Qc6 {[%clk 0:01:29]} 30. Qxc6 {[%clk 0:01:14]}  bxc6 {[%clk 0:01:29]} 31. Rc1 {[%clk 0:01:15]}  c5 {[%clk 0:01:26]} 32. d7 {[%clk 0:01:13]}  Kf8 {[%clk 0:01:22]} 33. Re8+ {[%clk 0:01:13]}  Rxe8 {[%clk 0:01:22]} 34. dxe8=Q+ {[%clk 0:01:13]}  Kxe8 {[%clk 0:01:23]} 35. Nd6+ {[%clk 0:01:14]}  Ke7 {[%clk 0:01:21]} 36. Nc4 {[%clk 0:01:14]}  Rd5 {[%clk 0:01:20]} 37. Ra1 {[%clk 0:01:14]}  Rd3 {[%clk 0:01:18]} 38. Na5 {[%clk 0:01:13]}  Nd4 {[%clk 0:01:16]} 39. Rb1 {[%clk 0:01:07]}  Kd7 {[%clk 0:01:11]} 40. Kg1 {[%clk 0:01:08]}  g5 {[%clk 0:01:07]} 41. Kf2 {[%clk 0:01:07]}  f5 {[%clk 0:01:03]} 42. Kg3 {[%clk 0:01:01]}  Rd2 {[%clk 0:01:00]} 43. Nc4 {[%clk 0:00:59]}  Ne2+ {[%clk 0:00:58]} 44. Kf2 {[%clk 0:00:58]}  Ra2 {[%clk 0:00:54]} 45. Rd1+ {[%clk 0:00:58]}  Kc7 {[%clk 0:00:52]} 46. Ke3 {[%clk 0:00:57]}  Nd4 {[%clk 0:00:49]} 47. Rb1 {[%clk 0:00:51]}  Kc6 {[%clk 0:00:42]} 48. b4 {[%clk 0:00:51]}  Nc2+ {[%clk 0:00:38]} 49. Kd3 {[%clk 0:00:44]}  Nxb4+ {[%clk 0:00:38]} 50. Kc3 {[%clk 0:00:45]}  Rc2+ {[%clk 0:00:33]} 51. Kb3 {[%clk 0:00:45]}  Rxg2 {[%clk 0:00:33]} 52. h4 {[%clk 0:00:44]}  Rg3 {[%clk 0:00:31]} 53. Ka4 {[%clk 0:00:43]}  gxh4 {[%clk 0:00:29]} 54. Rh1 {[%clk 0:00:42]}  h3 {[%clk 0:00:29]} 55. Ne5+ {[%clk 0:00:40]}  Kd5 {[%clk 0:00:28]} 56. Nf7 {[%clk 0:00:39]}  h5 {[%clk 0:00:28]} 57. f4 {[%clk 0:00:39]}  Nd3 {[%clk 0:00:25]} 58. Ng5 {[%clk 0:00:39]}  Nxf4 {[%clk 0:00:21]} 59. Rf1 {[%clk 0:00:37]}  h2 {[%clk 0:00:21]} 60. Nf3 {[%clk 0:00:35]}  Rxf3 {[%clk 0:00:20]} 61. Rxf3 {[%clk 0:00:33]}  h1=Q {[%clk 0:00:20]} 62. Ra3 {[%clk 0:00:33]}  Qd1+ {[%clk 0:00:19]} 63. Ka5 {[%clk 0:00:33]}  Qd2+ {[%clk 0:00:20]} 64. Kb6 {[%clk 0:00:33]}  Qb4+ {[%clk 0:00:20]} 65. Ka7 {[%clk 0:00:33]}  Qxa3 {[%clk 0:00:20]} 66. Ka8 {[%clk 0:00:34]}  a5 {[%clk 0:00:20]} 67. Ka7 {[%clk 0:00:34]}  Qb4 {[%clk 0:00:20]} 68. Ka6 {[%clk 0:00:33]}  a4 {[%clk 0:00:21]} 69. Ka7 {[%clk 0:00:33]}  a3 {[%clk 0:00:22]} 70. Ka8 {[%clk 0:00:33]}  a2 {[%clk 0:00:23]} 71. Ka7 {[%clk 0:00:34]}  a1=Q# {[%clk 0:00:23]} 0-1


[Site "https://www.chess.com"]

[Event "Titled Tuesday Blitz February 07 Late 2023"]
[White "O`Gorman, Tom"]
[Black "Sailer, Mike"]
[WhiteFideId "2508249"]
[BlackFideId "2012901"]
[WhiteElo "2355"]
[BlackElo "2109"]
[Result "1-0"]
[Round "01"]
[TimeControl "180+2"]
[Date "2023.02.07"]
[WhiteClock "0:00:40"]
[BlackClock "0:00:12"]

1. Nf3 {[%clk 0:02:57]}  g6 {[%clk 0:02:59]} 2. e4 {[%clk 0:02:56]}  Bg7 {[%clk 0:03:00]} 3. d4 {[%clk 0:02:56]}  c6 {[%clk 0:03:00]} 4. Nc3 {[%clk 0:02:55]}  d5 {[%clk 0:03:01]} 5. h3 {[%clk 0:02:56]}  dxe4 {[%clk 0:02:46]} 6. Nxe4 {[%clk 0:02:57]}  Nd7 {[%clk 0:02:40]} 7. Bf4 {[%clk 0:02:39]}  Ngf6 {[%clk 0:02:38]} 8. Nxf6+ {[%clk 0:02:38]}  Nxf6 {[%clk 0:02:38]} 9. Bd3 {[%clk 0:02:38]}  O-O {[%clk 0:02:36]} 10. O-O {[%clk 0:02:37]}  Qb6 {[%clk 0:02:25]} 11. b3 {[%clk 0:02:27]}  a5 {[%clk 0:02:10]} 12. c4 {[%clk 0:02:21]}  a4 {[%clk 0:02:09]} 13. Qc2 {[%clk 0:02:17]}  axb3 {[%clk 0:01:56]} 14. axb3 {[%clk 0:02:18]}  Rxa1 {[%clk 0:01:56]} 15. Rxa1 {[%clk 0:02:18]}  Nh5 {[%clk 0:01:45]} 16. Be3 {[%clk 0:02:15]}  Qc7 {[%clk 0:01:45]} 17. Qd2 {[%clk 0:02:10]}  Rd8 {[%clk 0:01:41]} 18. Re1 {[%clk 0:01:54]}  b6 {[%clk 0:01:20]} 19. Qb4 {[%clk 0:01:41]}  Bb7 {[%clk 0:01:14]} 20. Bf1 {[%clk 0:01:38]}  e6 {[%clk 0:01:09]} 21. c5 {[%clk 0:01:19]}  b5 {[%clk 0:01:02]} 22. Ra1 {[%clk 0:01:19]}  Nf4 {[%clk 0:00:52]} 23. Qa5 {[%clk 0:01:16]}  Qxa5 {[%clk 0:00:48]} 24. Rxa5 {[%clk 0:01:17]}  Nd5 {[%clk 0:00:44]} 25. Ra7 {[%clk 0:01:16]}  Ba8 {[%clk 0:00:42]} 26. Bd3 {[%clk 0:01:13]}  Nxe3 {[%clk 0:00:36]} 27. fxe3 {[%clk 0:01:12]}  e5 {[%clk 0:00:36]} 28. Kf2 {[%clk 0:00:52]}  exd4 {[%clk 0:00:24]} 29. exd4 {[%clk 0:00:53]}  Kf8 {[%clk 0:00:19]} 30. Ke3 {[%clk 0:00:42]}  Bh6+ {[%clk 0:00:16]} 31. Ke2 {[%clk 0:00:42]}  Re8+ {[%clk 0:00:16]} 32. Kf1 {[%clk 0:00:41]}  Rb8 {[%clk 0:00:16]} 33. Ne5 {[%clk 0:00:41]}  Bg7 {[%clk 0:00:12]} 34. Nd7+ {[%clk 0:00:40]} 1-0


[Site "https://www.chess.com"]

[Event "Titled Tuesday Blitz February 07 Late 2023"]
[White "Golubev, Mikhail"]
[Black "Harish, Neeraj"]
[WhiteFideId "14100983"]
[BlackFideId "30958130"]
[WhiteElo "2461"]
[BlackElo "2232"]
[Result "1-0"]
[Round "01"]
[TimeControl "180+2"]
[Date "2023.02.07"]
[WhiteClock "0:02:26"]
[BlackClock "0:01:08"]

1. e4 {[%clk 0:03:00]}  c5 {[%clk 0:02:55]} 2. Nf3 {[%clk 0:02:59]}  Nc6 {[%clk 0:02:54]} 3. Nc3 {[%clk 0:02:58]}  e5 {[%clk 0:02:53]} 4. Bc4 {[%clk 0:02:57]}  Be7 {[%clk 0:02:50]} 5. d3 {[%clk 0:02:55]}  Nf6 {[%clk 0:02:41]} 6. Ng5 {[%clk 0:02:55]}  O-O {[%clk 0:02:39]} 7. h4 {[%clk 0:02:53]}  d6 {[%clk 0:02:16]} 8. Nd5 {[%clk 0:02:41]}  Nxd5 {[%clk 0:02:09]} 9. Bxd5 {[%clk 0:02:34]}  Bf6 {[%clk 0:01:32]} 10. Qh5 {[%clk 0:02:30]}  Bxg5 {[%clk 0:01:18]} 11. hxg5 {[%clk 0:02:28]}  h6 {[%clk 0:01:13]} 12. gxh6 {[%clk 0:02:28]}  g6 {[%clk 0:01:08]} 13. Qxg6+ {[%clk 0:02:26]}  Kh8 {[%clk 0:01:08]} 14. Qg7# {[%clk 0:02:26]} 1-0


[Site "https://www.chess.com"]

[Event "Titled Tuesday Blitz February 07 Late 2023"]
[White "Winkels, Marcel"]
[Black "Aggelis, Nikolaos"]
[WhiteFideId "1003887"]
[BlackFideId "4213220"]
[WhiteElo "1960"]
[BlackElo "2270"]
[Result "0-1"]
[Round "01"]
[TimeControl "180+2"]
[Date "2023.02.07"]
[WhiteClock "0:00:02"]
[BlackClock "0:00:17"]

1. e4 {[%clk 0:02:59]}  c6 {[%clk 0:03:00]} 2. d4 {[%clk 0:02:57]}  d5 {[%clk 0:03:00]} 3. exd5 {[%clk 0:02:56]}  cxd5 {[%clk 0:03:00]} 4. c4 {[%clk 0:02:57]}  Nf6 {[%clk 0:02:59]} 5. Nc3 {[%clk 0:02:57]}  g6 {[%clk 0:03:00]} 6. cxd5 {[%clk 0:02:57]}  Bg7 {[%clk 0:03:00]} 7. Bb5+ {[%clk 0:02:55]}  Nbd7 {[%clk 0:02:59]} 8. d6 {[%clk 0:02:55]}  e6 {[%clk 0:02:47]} 9. Bf4 {[%clk 0:02:48]}  O-O {[%clk 0:02:47]} 10. Nf3 {[%clk 0:02:47]}  Nh5 {[%clk 0:02:43]} 11. Bg5 {[%clk 0:02:25]}  f6 {[%clk 0:02:33]} 12. Be3 {[%clk 0:02:23]}  Bh8 {[%clk 0:02:09]} 13. O-O {[%clk 0:02:12]}  Qb6 {[%clk 0:02:07]} 14. d5 {[%clk 0:01:53]}  Qxd6 {[%clk 0:02:06]} 15. dxe6 {[%clk 0:01:50]}  Qxe6 {[%clk 0:02:07]} 16. Qe2 {[%clk 0:01:49]}  Nb6 {[%clk 0:01:52]} 17. a4 {[%clk 0:01:47]}  Bd7 {[%clk 0:01:22]} 18. Bxb6 {[%clk 0:01:37]}  Qxe2 {[%clk 0:01:18]} 19. Bxe2 {[%clk 0:01:28]}  axb6 {[%clk 0:01:16]} 20. Bc4+ {[%clk 0:01:24]}  Kg7 {[%clk 0:01:15]} 21. Rfe1 {[%clk 0:01:22]}  Rfe8 {[%clk 0:01:13]} 22. Rad1 {[%clk 0:01:19]}  Bxa4 {[%clk 0:00:57]} 23. Rxe8 {[%clk 0:01:12]}  Bxe8 {[%clk 0:00:56]} 24. Nd5 {[%clk 0:00:41]}  Rd8 {[%clk 0:00:45]} 25. Nd4 {[%clk 0:00:28]}  Bf7 {[%clk 0:00:41]} 26. Nxb6 {[%clk 0:00:25]}  Nf4 {[%clk 0:00:33]} 27. Bxf7 {[%clk 0:00:21]}  Kxf7 {[%clk 0:00:30]} 28. Rd2 {[%clk 0:00:10]}  Rxd4 {[%clk 0:00:31]} 29. Rxd4 {[%clk 0:00:06]}  Ne2+ {[%clk 0:00:31]} 30. Kf1 {[%clk 0:00:06]}  Nxd4 {[%clk 0:00:32]} 31. Nc4 {[%clk 0:00:05]}  Ke6 {[%clk 0:00:29]} 32. Na5 {[%clk 0:00:04]}  b6 {[%clk 0:00:28]} 33. Nc4 {[%clk 0:00:03]}  b5 {[%clk 0:00:28]} 34. Na3 {[%clk 0:00:03]}  f5 {[%clk 0:00:26]} 35. Ke1 {[%clk 0:00:03]}  Kd5 {[%clk 0:00:26]} 36. Kd2 {[%clk 0:00:04]}  Be5 {[%clk 0:00:20]} 37. Kd3 {[%clk 0:00:03]}  Bxh2 {[%clk 0:00:18]} 38. g3 {[%clk 0:00:03]}  Bg1 {[%clk 0:00:18]} 39. Ke3 {[%clk 0:00:02]}  g5 {[%clk 0:00:17]} 0-1


[Site "https://www.chess.com"]

[Event "Titled Tuesday Blitz February 07 Late 2023"]
[White "Veiga, Jose Francisco R P Neves"]
[Black "Bongo Akanga Ndjila, Barthelemy"]
[WhiteFideId "1930087"]
[BlackFideId "10609431"]
[WhiteElo "2406"]
[BlackElo "1824"]
[Result "0-1"]
[Round "01"]
[TimeControl "180+2"]
[Date "2023.02.07"]
[WhiteClock "0:00:09"]
[BlackClock "0:00:11"]

1. Nf3 {[%clk 0:02:52]}  Nf6 {[%clk 0:02:58]} 2. b3 {[%clk 0:02:49]}  d5 {[%clk 0:02:57]} 3. Bb2 {[%clk 0:02:50]}  e6 {[%clk 0:02:57]} 4. c4 {[%clk 0:02:50]}  Be7 {[%clk 0:02:55]} 5. e3 {[%clk 0:02:50]}  O-O {[%clk 0:02:55]} 6. Be2 {[%clk 0:02:50]}  c6 {[%clk 0:02:56]} 7. O-O {[%clk 0:02:50]}  a5 {[%clk 0:02:54]} 8. d4 {[%clk 0:02:49]}  b6 {[%clk 0:02:51]} 9. Nbd2 {[%clk 0:02:49]}  Ba6 {[%clk 0:02:49]} 10. Qc2 {[%clk 0:02:45]}  Nbd7 {[%clk 0:02:48]} 11. e4 {[%clk 0:02:45]}  dxe4 {[%clk 0:02:47]} 12. Nxe4 {[%clk 0:02:46]}  Rc8 {[%clk 0:02:46]} 13. Rad1 {[%clk 0:02:45]}  Qc7 {[%clk 0:02:38]} 14. Bd3 {[%clk 0:02:36]}  h6 {[%clk 0:02:36]} 15. Ne5 {[%clk 0:02:34]}  Rfd8 {[%clk 0:02:32]} 16. Nxd7 {[%clk 0:02:29]}  Rxd7 {[%clk 0:02:31]} 17. Qe2 {[%clk 0:02:12]}  Nh7 {[%clk 0:02:24]} 18. Bb1 {[%clk 0:01:40]}  Nf8 {[%clk 0:02:20]} 19. Rfe1 {[%clk 0:01:38]}  b5 {[%clk 0:02:18]} 20. d5 {[%clk 0:01:36]}  cxd5 {[%clk 0:02:13]} 21. Qg4 {[%clk 0:01:36]}  Ng6 {[%clk 0:02:03]} 22. cxd5 {[%clk 0:01:35]}  Rxd5 {[%clk 0:01:56]} 23. Rxd5 {[%clk 0:01:23]}  exd5 {[%clk 0:01:54]} 24. Nc3 {[%clk 0:01:20]}  Qd6 {[%clk 0:01:17]} 25. Bxg6 {[%clk 0:01:17]}  fxg6 {[%clk 0:01:13]} 26. Re6 {[%clk 0:01:16]}  Qd7 {[%clk 0:01:07]} 27. Qxg6 {[%clk 0:01:08]}  Bb7 {[%clk 0:01:04]} 28. Nxd5 {[%clk 0:01:01]}  Rc1+ {[%clk 0:00:52]} 29. Bxc1 {[%clk 0:01:02]}  Bxd5 {[%clk 0:00:51]} 30. Bxh6 {[%clk 0:00:27]}  Bf8 {[%clk 0:00:43]} 31. Re1 {[%clk 0:00:27]}  Bf7 {[%clk 0:00:41]} 32. Qg3 {[%clk 0:00:24]}  Qc6 {[%clk 0:00:31]} 33. Be3 {[%clk 0:00:22]}  Bb4 {[%clk 0:00:29]} 34. Rf1 {[%clk 0:00:19]}  a4 {[%clk 0:00:28]} 35. Bd4 {[%clk 0:00:19]}  Bf8 {[%clk 0:00:24]} 36. Qe3 {[%clk 0:00:17]}  axb3 {[%clk 0:00:23]} 37. axb3 {[%clk 0:00:17]}  Qc2 {[%clk 0:00:22]} 38. Rc1 {[%clk 0:00:15]}  Qa2 {[%clk 0:00:20]} 39. Ra1 {[%clk 0:00:12]}  Qc2 {[%clk 0:00:19]} 40. h4 {[%clk 0:00:12]}  Bxb3 {[%clk 0:00:17]} 41. h5 {[%clk 0:00:12]}  Bc4 {[%clk 0:00:14]} 42. Ra8 {[%clk 0:00:10]}  Qb1+ {[%clk 0:00:12]} 43. Kh2 {[%clk 0:00:10]}  Qf5 {[%clk 0:00:08]} 44. Qf3 {[%clk 0:00:10]}  Qxf3 {[%clk 0:00:05]} 45. gxf3 {[%clk 0:00:11]}  Kf7 {[%clk 0:00:05]} 46. Kg2 {[%clk 0:00:10]}  Be7 {[%clk 0:00:06]} 47. Ra7 {[%clk 0:00:10]}  Ke8 {[%clk 0:00:05]} 48. Bxg7 {[%clk 0:00:10]}  Bc5 {[%clk 0:00:05]} 49. Ra8+ {[%clk 0:00:10]}  Kf7 {[%clk 0:00:05]} 50. h6 {[%clk 0:00:11]}  Kg6 {[%clk 0:00:04]} 51. Ra6+ {[%clk 0:00:09]}  Kh7 {[%clk 0:00:05]} 52. Rc6 {[%clk 0:00:10]}  Be7 {[%clk 0:00:04]} 53. Rc7 {[%clk 0:00:11]}  Bg5 {[%clk 0:00:04]} 54. f4 {[%clk 0:00:08]}  Bxh6 {[%clk 0:00:03]} 55. Bxh6+ {[%clk 0:00:09]}  Kxh6 {[%clk 0:00:04]} 56. Kf3 {[%clk 0:00:09]}  Kg6 {[%clk 0:00:05]} 57. Ke3 {[%clk 0:00:10]}  Kf6 {[%clk 0:00:05]} 58. f3 {[%clk 0:00:10]}  Ke6 {[%clk 0:00:04]} 59. Rc5 {[%clk 0:00:11]}  Kf6 {[%clk 0:00:05]} 60. Re5 {[%clk 0:00:11]}  Bf1 {[%clk 0:00:04]} 61. Kd4 {[%clk 0:00:12]}  Kf7 {[%clk 0:00:04]} 62. Ke4 {[%clk 0:00:12]}  Kf6 {[%clk 0:00:05]} 63. Rc5 {[%clk 0:00:12]}  Kf7 {[%clk 0:00:06]} 64. Kf5 {[%clk 0:00:12]}  Bc4 {[%clk 0:00:07]} 65. Rc7+ {[%clk 0:00:12]}  Ke8 {[%clk 0:00:08]} 66. Kf6 {[%clk 0:00:13]}  Bd3 {[%clk 0:00:08]} 67. f5 {[%clk 0:00:13]}  Kd8 {[%clk 0:00:08]} 68. Rb7 {[%clk 0:00:12]}  Kc8 {[%clk 0:00:08]} 69. Rb6 {[%clk 0:00:10]}  Kd7 {[%clk 0:00:08]} 70. Kf7 {[%clk 0:00:09]}  Kc7 {[%clk 0:00:07]} 71. Rc6+ {[%clk 0:00:07]}  Kxc6 {[%clk 0:00:07]} 72. f6 {[%clk 0:00:07]}  Kd7 {[%clk 0:00:05]} 73. Kg7 {[%clk 0:00:07]}  Bc4 {[%clk 0:00:06]} 74. f7 {[%clk 0:00:07]}  Bxf7 {[%clk 0:00:07]} 75. Kxf7 {[%clk 0:00:08]}  Kd6 {[%clk 0:00:07]} 76. f4 {[%clk 0:00:08]}  b4 {[%clk 0:00:08]} 77. f5 {[%clk 0:00:08]}  b3 {[%clk 0:00:09]} 78. f6 {[%clk 0:00:09]}  b2 {[%clk 0:00:10]} 79. Kg7 {[%clk 0:00:09]}  b1=Q {[%clk 0:00:09]} 80. f7 {[%clk 0:00:10]}  Qg1+ {[%clk 0:00:10]} 81. Kf8 {[%clk 0:00:07]}  Qg6 {[%clk 0:00:08]} 82. Ke8 {[%clk 0:00:07]}  Ke6 {[%clk 0:00:09]} 83. Kd8 {[%clk 0:00:07]}  Qxf7 {[%clk 0:00:10]} 84. Kc8 {[%clk 0:00:08]}  Qd7+ {[%clk 0:00:10]} 85. Kb8 {[%clk 0:00:09]}  Kd6 {[%clk 0:00:11]} 0-1


[Site "https://www.chess.com"]